bitfinex-derivatives/quotes_SOLF0:USTF0_20241101
["timestamp","ask_amount","ask_price","bid_price","bid_amount"]
[1730487071174,0.96887148,166.51,166.42,3.36]
[1730487071382,11.55234717,166.5,166.39,1.3094]
[1730487071686,0.96901328,166.49,166.39,1.3094]
[1730487072081,3.0051,166.45,166.4,3.0058]
[1730487073080,3.0049,166.46,166.39,4.3153]
[1730487073287,3.36,166.48,166.39,4.3153]
[1730487073687,3.0052,166.44,166.39,4.3153]
[1730487075692,3.36,166.48,166.39,4.3153]
[1730487075877,3.0053,166.43,166.39,4.3153]
[1730487077079,3.36,166.48,166.39,4.3153]
[1730487077277,3.0055,166.42,166.39,4.3153]
[1730487080492,3.005,166.45,166.42,3.0054]
[1730487080793,3.36,166.48,166.42,11.55234717]
[1730487081006,3.36,166.51,166.42,11.55234717]
[1730487081192,3.0048,166.46,166.42,14.55774717]
[1730487081388,3.36,166.51,166.39,1.3094]
[1730487081592,0.96899176,166.5,166.4,11.55234717]
[1730487081893,11.55234717,166.49,166.38,12.92824717]
[1730487082191,11.55234717,166.47,166.38,12.92824717]
[1730487082395,11.55234717,166.47,166.38,1.3759]
[1730487082597,2.7349,166.46,166.38,1.3759]
[1730487082898,3.0055,166.42,166.38,4.382]
[1730487083508,4.7393,166.46,166.38,12.92824717]
[1730487083793,3.36,166.46,166.41,11.55234717]
[1730487083992,4.7404,166.5,166.41,11.55234717]
[1730487084296,0.96909364,166.49,166.41,11.55234717]
[1730487084797,3.0049,166.46,166.41,14.55784717]
[1730487087191,3.0052,166.44,166.39,3.0059]
[1730487087395,11.55234717,166.49,166.39,3.0059]
[1730487087698,3.0052,166.44,166.39,3.0059]
[1730487088197,3.0056,166.42,166.38,1.3759]
[1730487088405,14.56088359,166.47,166.38,1.3759]
[1730487088702,11.55234717,166.47,166.38,1.3759]
[1730487088902,3.0056,166.42,166.38,1.3759]
[1730487089098,11.55234717,166.44,166.34,11.55234717]
[1730487089291,3.0063,166.38,166.33,3.007]
[1730487089491,11.55234717,166.42,166.32,12.89414717]
[1730487089687,11.55234717,166.42,166.32,1.3418]
[1730487089688,12.90224717,166.42,166.32,1.3418]
[1730487089900,3.0066,166.36,166.32,1.3418]
[1730487092801,3.0063,166.38,166.34,3.0069]
[1730487093006,3.36,166.4,166.34,14.55924717]
[1730487093402,3.0062,166.39,166.34,14.55924717]
[1730487094800,3.0062,166.38,166.32,1.3418]
[1730487095106,3.0062,166.38,166.29,12.82934717]
[1730487095107,11.55234717,166.37,166.29,1.277]
[1730487095302,11.55234717,166.37,166.27,11.55234717]
[1730487095608,3.0069,166.34,166.27,11.55234717]
[1730487095804,14.91234717,166.4,166.29,11.55234717]
[1730487096510,3.0067,166.35,166.3,3.0076]
[1730487096700,11.55234717,166.38,166.29,11.55234717]
[1730487096895,3.0072,166.33,166.28,3.0079]
[1730487097297,3.0075,166.31,166.27,11.55234717]
[1730487097707,11.55234717,166.36,166.27,11.55234717]
[1730487097905,1.3005,166.35,166.27,11.55234717]
[1730487099006,3.0076,166.31,166.27,11.55234717]
[1730487099401,3.0072,166.33,166.28,3.0078]
[1730487099698,1.3005,166.35,166.28,3.0078]
[1730487100321,3.0072,166.33,166.28,3.0078]
[1730487101609,3.0073,166.32,166.28,3.0078]
[1730487101907,11.55234717,166.38,166.27,11.55234717]
[1730487102106,3.0068,166.35,166.31,3.0074]
[1730487102416,1.2513,166.39,166.31,3.0074]
[1730487102712,3.007,166.34,166.3,4.3212]
[1730487103307,11.55234717,166.36,166.25,11.55234717]
[1730487104305,11.55234717,166.36,166.27,3.008]
[1730487105408,11.55234717,166.36,166.27,11.55234717]
[1730487105607,11.55234717,166.38,166.27,11.55234717]
[1730487106317,11.55234717,166.38,166.29,3.0078]
[1730487106914,11.55234717,166.35,166.24,78.3111334]
[1730487107313,14.91234717,166.35,166.24,78.3111334]
[1730487107610,3.0076,166.31,166.26,3.0082]
[1730487108607,11.55234717,166.33,166.24,76.6712334]
[1730487108814,1.3069,166.32,166.24,76.6712334]
[1730487109318,3.0079,166.29,166.24,76.6712334]
[1730487109707,3.008,166.28,166.24,76.6712334]
[1730487110410,3.008,166.28,166.24,4.3041]
[1730487110615,3.0082,166.27,166.24,4.3041]
[1730487111023,3.0077,166.3,166.24,1.2954]
[1730487111317,1.3069,166.32,166.24,1.2954]
[1730487112206,1.3069,166.32,166.24,4.3041]
[1730487112811,3.0079,166.29,166.24,4.3041]
[1730487114116,1.3069,166.32,166.24,1.2954]
[1730487114320,3.0076,166.3,166.24,1.2954]
[1730487115124,3.0076,166.3,166.26,3.0082]
[1730487115322,1.3069,166.32,166.26,3.0082]
[1730487115617,3.0078,166.29,166.26,3.0082]
[1730487116216,11.55234717,166.38,166.28,11.55234717]
[1730487116519,11.55234717,166.36,166.26,11.55234717]
[1730487116718,3.0074,166.32,166.27,3.008]
[1730487117619,11.55234717,166.34,166.24,16.20774717]
[1730487118016,11.55234717,166.34,166.24,4.6554]
[1730487118217,2.6026,166.33,166.24,4.6554]
[1730487118530,11.55234717,166.31,166.24,1.2954]
[1730487119313,3.0083,166.27,166.24,1.2954]
[1730487121731,2.6026,166.33,166.24,12.84774717]
[1730487122524,14.15494717,166.33,166.24,12.84774717]
[1730487122727,14.15494717,166.33,166.24,1.2954]
[1730487123232,3.0079,166.29,166.24,4.304]
[1730487123426,14.15494717,166.33,166.24,1.2954]
[1730487123633,12.91774717,166.38,166.27,11.55234717]
[1730487123925,3.007,166.34,166.29,3.0077]
[1730487124513,3.0071,166.33,166.29,3.0077]
[1730487124922,11.55234717,166.35,166.26,3.36]
[1730487125527,3.0076,166.31,166.26,6.3683]
[1730487125827,11.55234717,166.35,166.26,6.3683]
[1730487126629,3.0076,166.3,166.26,6.3683]
[1730487126827,11.55234717,166.35,166.26,3.36]
[1730487127129,3.0077,166.3,166.26,3.36]
[1730487127828,3.0077,166.3,166.25,15.82094717]
[1730487128030,3.0077,166.3,166.25,14.56074717]
[1730487128526,3.0076,166.3,166.26,3.0082]
[1730487128723,11.55234717,166.35,166.25,11.55234717]
[1730487128928,12.32093679,166.38,166.27,11.55234717]
[1730487128929,14.91234717,166.38,166.27,11.55234717]
[1730487129126,3.007,166.34,166.27,11.55234717]
[1730487129533,3.36,166.37,166.27,11.55234717]
[1730487130723,3.007,166.34,166.29,3.0077]
[1730487131136,3.007,166.34,166.27,11.55234717]
[1730487131319,3.007,166.34,166.29,3.0077]
[1730487132228,3.0067,166.35,166.31,3.0073]
[1730487132432,5.8749,166.39,166.3,1.2483]
[1730487132631,4.622,166.39,166.3,1.2483]
[1730487132824,11.55234717,166.42,166.32,11.55234717]
[1730487133027,3.36,166.41,166.32,11.55234717]
[1730487133328,6.3657,166.41,166.36,3.0064]
[1730487134035,3.0055,166.42,166.37,3.0063]
[1730487134335,3.0055,166.42,166.37,4.2808]
[1730487134535,4.6327,166.44,166.37,4.2808]
[1730487134720,3.0057,166.41,166.37,1.2745]
[1730487138833,12.82144717,166.46,166.37,1.2745]
[1730487138834,3.0053,166.43,166.38,3.0061]
[1730487139131,4.6291,166.46,166.38,14.55844717]
[1730487141635,16.18144717,166.46,166.38,3.0061]
[1730487141841,11.55234717,166.44,166.37,1.2745]
[1730487142046,4.6291,166.46,166.35,3.36]
[1730487142047,11.55234717,166.42,166.35,3.36]
[1730487142344,3.0065,166.36,166.32,14.19874717]
[1730487142538,11.55234717,166.42,166.32,14.19874717]
[1730487142932,3.0063,166.38,166.33,3.0071]
[1730487143741,11.55234717,166.4,166.32,14.19874717]
[1730487144339,3.0066,166.36,166.32,14.19874717]
[1730487145346,3.0066,166.36,166.32,17.20594717]
[1730487145948,11.55234717,166.4,166.32,1.3592]
[1730487146145,0.96634325,166.39,166.32,1.3592]
[1730487146345,11.55234717,166.38,166.3,72.38417894]
[1730487146536,3.0071,166.33,166.3,72.38417894]
[1730487147044,11.55234717,166.38,166.3,72.38417894]
[1730487147234,11.55234717,166.38,166.3,75.39177894]
[1730487147431,12.86594717,166.4,166.3,75.39177894]
[1730487147644,0.96641797,166.39,166.3,75.39177894]
[1730487147950,3.0068,166.35,166.3,75.39177894]
[1730487148340,3.0065,166.37,166.32,3.0072]
[1730487148642,1.3136,166.4,166.32,11.55234717]
[1730487148835,3.36,166.41,166.33,1.2525]
[1730487149033,3.0063,166.38,166.33,4.2594]
[1730487150339,11.55234717,166.38,166.3,88.26672611]
[1730487150540,11.55234717,166.38,166.3,73.70687894]
[1730487151044,3.0068,166.35,166.3,76.71437894]
[1730487151251,11.55234717,166.38,166.3,73.70687894]
[1730487151941,11.55234717,166.38,166.3,72.38417894]
[1730487152747,3.007,166.34,166.3,72.38417894]
[1730487153850,3.007,166.34,166.3,75.39177894]
[1730487154951,14.91234717,166.36,166.28,1.2525]
[1730487155160,11.55234717,166.34,166.28,1.2525]
[1730487155544,3.0076,166.31,166.28,1.2525]
[1730487157946,14.91234717,166.36,166.28,1.2525]
[1730487158148,3.0076,166.3,166.28,1.2525]
[1730487160454,3.0078,166.29,166.28,1.2525]
[1730487161357,11.55234717,166.34,166.23,11.55234717]
[1730487161550,3.008,166.28,166.23,11.55234717]
[1730487161749,1.2587,166.33,166.23,11.55234717]
[1730487162350,3.0079,166.29,166.24,3.0086]
[1730487162765,1.2587,166.33,166.23,11.55234717]
[1730487163156,3.0077,166.3,166.26,3.0083]
[1730487164865,1.2587,166.33,166.23,11.55234717]
[1730487165968,1.2587,166.33,166.24,3.0086]
[1730487166363,3.008,166.29,166.24,3.0086]
[1730487166757,3.008,166.29,166.25,3.0085]
[1730487167063,3.008,166.29,166.23,11.55234717]
[1730487167064,3.0076,166.31,166.26,11.55234717]
[1730487167860,3.0076,166.31,166.27,3.008]
[1730487168062,14.91234717,166.36,166.26,11.55234717]
[1730487168362,3.008,166.28,166.24,11.55234717]
[1730487168555,3.008,166.28,166.24,14.56094717]
[1730487175664,28.0,166.27,166.21,11.55234717]
[1730487175866,11.55234717,166.23,166.12,11.55234717]
[1730487176070,11.55234717,166.2,166.07,8.70622592]
[1730487176275,3.0103,166.16,166.07,8.70622592]
[1730487176566,3.0103,166.16,166.1,7.40743887]
[1730487176777,7.40743887,166.17,166.12,3.0107]
[1730487177069,7.40743887,166.17,166.1,7.40743887]
[1730487177367,7.40743887,166.13,166.08,6.54738903]
[1730487177758,3.36,166.17,166.1,7.40743887]
[1730487177966,7.40743887,166.16,166.1,7.40743887]
[1730487178561,3.36,166.17,166.08,3.53588903]
[1730487178562,3.36,166.17,166.08,15.11044662]
[1730487178765,3.0105,166.15,166.1,3.0111]
[1730487179671,3.0105,166.15,166.08,15.11044662]
[1730487179871,3.0105,166.15,166.1,3.0111]
[1730487180075,3.0105,166.14,166.1,3.0111]
[1730487181874,14.93455759,166.19,166.08,15.11044662]
[1730487182174,11.57455759,166.21,166.1,11.57455759]
[1730487182374,11.57455759,166.21,166.11,1.2579]
[1730487182676,3.0101,166.17,166.13,3.0107]
[1730487183062,3.0101,166.17,166.14,1.3286]
[1730487183669,3.0101,166.17,166.14,4.3391]
[1730487184983,11.57455759,166.21,166.14,1.3286]
[1730487185277,11.57455759,166.19,166.1,3.0112]
[1730487185481,11.57455759,166.15,166.09,1.3143]
[1730487185680,3.011,166.12,166.09,4.3257]
[1730487186983,3.5,166.17,166.1,3.0111]
[1730487187280,3.5,166.17,166.09,1.3143]
[1730487187678,28.0,166.16,166.08,3.53588903]
[1730487187878,28.0,166.16,166.03,4.92576127]
[1730487187879,11.57455759,166.11,166.05,2.45806237]
[1730487188073,3.5,166.1,166.05,2.45806237]
[1730487188379,3.5,166.12,166.05,2.45806237]
[1730487188772,3.0114,166.1,166.05,5.47016237]
[1730487188977,3.5,166.12,166.05,2.45806237]
[1730487189576,11.57455759,166.11,166.05,2.45806237]
[1730487189984,3.0119,166.07,166.05,2.45806237]
[1730487190286,15.07455759,166.13,166.05,2.45806237]
[1730487190478,11.57455759,166.13,166.05,2.45806237]
[1730487190882,3.5,166.14,166.05,2.45806237]
[1730487191383,11.57455759,166.13,166.05,2.45806237]
[1730487191774,14.58495759,166.15,166.08,3.0116]
[1730487191983,3.0104,166.15,166.06,11.57455759]
[1730487192179,3.0104,166.15,166.06,15.07455759]
[1730487192483,3.0104,166.15,166.09,3.0114]
[1730487192780,3.5,166.17,166.09,3.0114]
[1730487192983,11.57455759,166.19,166.06,3.5]
[1730487193285,3.5,166.2,166.1,11.57455759]
[1730487193491,3.0096,166.19,166.11,3.9451]
[1730487193784,11.57455759,166.21,166.13,3.0106]
[1730487194276,11.57455759,166.21,166.11,3.9451]
[1730487194277,11.57455759,166.21,166.12,3.0107]
[1730487194480,11.57455759,166.21,166.11,3.9451]
[1730487195378,3.0099,166.18,166.13,3.0107]
[1730487195582,3.0099,166.18,166.11,3.9451]
[1730487195583,11.57455759,166.21,166.11,3.9451]
[1730487195785,3.0095,166.2,166.15,3.0102]
[1730487195976,11.57455759,166.21,166.12,11.57455759]
[1730487196287,3.0099,166.18,166.13,3.0106]
[1730487197388,11.57455759,166.19,166.12,3.0108]
[1730487197785,3.0101,166.17,166.12,3.0108]
[1730487197987,11.57455759,166.19,166.12,3.0108]
[1730487198494,3.0102,166.16,166.12,3.0108]
[1730487199385,3.0102,166.16,166.1,11.57455759]
[1730487199589,3.0102,166.16,166.13,3.0106]
[1730487200184,3.01,166.17,166.14,3.0104]
[1730487200581,11.57455759,166.21,166.1,11.57455759]
[1730487200881,3.0103,166.16,166.13,3.0106]
[1730487201491,11.57455759,166.21,166.12,3.0108]
[1730487201987,11.57455759,166.21,166.1,11.57455759]
[1730487202294,3.0098,166.18,166.13,3.0107]
[1730487202495,11.57455759,166.21,166.13,3.0107]
[1730487202979,3.5,166.22,166.12,11.57455759]
[1730487203185,3.0097,166.19,166.15,3.0103]
[1730487203984,3.0098,166.18,166.14,3.0105]
[1730487204189,11.57455759,166.21,166.1,11.57455759]
[1730487204500,3.0102,166.16,166.13,3.0107]
[1730487204687,3.0102,166.16,166.1,11.57455759]
[1730487206389,11.57455759,166.21,166.1,11.57455759]
[1730487206582,3.0107,166.14,166.1,11.57455759]
[1730487206787,11.57455759,166.21,166.1,11.57455759]
[1730487206986,3.0102,166.16,166.13,3.0107]
[1730487207500,3.01,166.17,166.14,3.0105]
[1730487208196,3.01,166.17,166.12,11.57455759]
[1730487208396,3.01,166.17,166.13,3.0106]
[1730487210190,3.5,166.22,166.12,11.57455759]
[1730487210391,3.5,166.22,166.13,1.3567]
[1730487210587,3.0098,166.19,166.15,3.0103]
[1730487210900,11.57455759,166.21,166.13,1.3567]
[1730487211196,3.0101,166.17,166.13,4.3674]
[1730487211401,11.57455759,166.21,166.1,11.57455759]
[1730487211704,11.57455759,166.19,166.1,11.57455759]
[1730487212206,11.57455759,166.19,166.11,3.0109]
[1730487212501,7.40781487,166.16,166.11,10.41871487]
[1730487212702,3.0104,166.15,166.11,7.40781487]
[1730487213694,3.0102,166.16,166.12,10.41861487]
[1730487215106,3.0104,166.15,166.12,7.40781487]
[1730487215303,3.0104,166.15,166.1,7.40781487]
[1730487216405,3.0104,166.15,166.11,3.011]
[1730487219595,3.01,166.17,166.13,10.41841487]
[1730487219797,7.40781487,166.18,166.13,7.40781487]
[1730487220095,3.01,166.17,166.13,7.40781487]
[1730487220294,3.01,166.17,166.13,10.41831487]
[1730487220494,7.40781487,166.18,166.13,7.40781487]
[1730487220700,10.41771487,166.18,166.14,3.0105]
[1730487220895,7.40781487,166.18,166.14,3.0105]
[1730487221300,3.01,166.17,166.13,10.41841487]
[1730487224507,10.41781487,166.17,166.13,3.0106]
[1730487225203,7.40781487,166.17,166.11,7.40781487]
[1730487225415,10.41831487,166.15,166.11,3.011]
[1730487225617,7.40781487,166.15,166.11,3.011]
[1730487226116,3.0107,166.13,166.1,10.41901487]
[1730487226821,3.0111,166.11,166.08,5.7437]
[1730487227009,10.41891487,166.11,166.08,3.0115]
[1730487228414,3.0116,166.09,166.06,11.80601487]
[1730487229106,3.0118,166.07,166.05,5.47016237]
[1730487229509,7.40781487,166.1,166.05,5.47016237]
[1730487229815,3.012,166.06,166.05,2.45806237]
[1730487230610,3.0118,166.07,166.05,2.45806237]
[1730487231017,7.40781487,166.14,166.09,7.40781487]
[1730487231606,7.40781487,166.13,166.07,7.40781487]
[1730487232118,3.0111,166.11,166.07,10.41951487]
[1730487235713,7.40781487,166.1,166.06,7.40781487]
[1730487235906,10.41921487,166.1,166.06,7.40781487]
[1730487236508,10.41921487,166.1,166.06,3.0119]
[1730487236715,10.41921487,166.1,166.05,9.86587724]
[1730487236716,7.40781487,166.1,166.05,9.86587724]
[1730487236932,7.40781487,166.09,166.05,2.45806237]
[1730487237921,3.0117,166.08,166.05,5.47016237]
[1730487238918,3.0117,166.08,166.05,2.45806237]
[1730487239128,7.40781487,166.08,166.05,2.45806237]
[1730487239822,3.0119,166.07,166.05,2.45806237]
[1730487240911,3.0113,166.1,166.07,3.0116]
[1730487241110,3.0113,166.1,166.07,10.41941487]
[1730487241716,10.41891487,166.11,166.08,3.0116]
[1730487241918,7.40781487,166.1,166.05,2.45806237]
[1730487242313,3.0115,166.09,166.05,5.47016237]
[1730487242513,3.0115,166.09,166.05,2.45806237]
[1730487242826,3.0115,166.09,166.06,3.0118]
[1730487244026,3.0112,166.11,166.07,3.0117]
[1730487244433,10.41901487,166.11,166.07,3.0117]
[1730487244730,7.40781487,166.11,166.06,7.40781487]
[1730487244917,7.40781487,166.11,166.07,3.0117]
[1730487246325,7.40781487,166.1,166.07,3.0117]
[1730487247325,10.41891487,166.11,166.07,3.0117]
[1730487247524,7.40781487,166.11,166.08,3.0116]
[1730487248333,3.0105,166.14,166.1,3.0112]
[1730487248529,7.40781487,166.16,166.1,7.40781487]
[1730487248721,3.0107,166.13,166.1,7.40781487]
[1730487248923,7.40781487,166.13,166.07,10.01481487]
[1730487249235,10.41861487,166.13,166.09,3.0114]
[1730487251032,7.40781487,166.13,166.07,10.01481487]
[1730487251327,7.40781487,166.1,166.06,3.4]
[1730487251533,7.40781487,166.1,166.05,2.45806237]
[1730487251727,7.40781487,166.08,166.05,2.45806237]
[1730487252428,3.0119,166.07,166.05,2.45806237]
[1730487254138,3.0116,166.08,166.05,5.47016237]
[1730487255936,3.0116,166.08,166.05,2.45806237]
[1730487256139,7.40781487,166.09,166.05,2.45806237]
[1730487256140,3.012,166.06,166.05,2.45806237]
[1730487256337,7.40781487,166.09,166.05,2.45806237]
[1730487256539,7.40781487,166.08,166.05,2.45806237]
[1730487256733,3.0119,166.07,166.05,2.45806237]
[1730487257033,7.40781487,166.09,166.05,2.45806237]
[1730487258037,3.0117,166.08,166.05,2.45806237]
[1730487258534,7.40781487,166.07,166.05,2.45806237]
[1730487258737,3.012,166.06,166.05,2.45806237]
[1730487259241,7.40781487,166.09,166.05,2.45806237]
[1730487259840,7.40781487,166.06,166.05,2.45806237]
[1730487260933,3.012,166.06,166.05,2.45806237]
[1730487261133,7.40781487,166.07,166.05,2.45806237]
[1730487261832,2.5745,166.14,166.05,2.45806237]
[1730487261833,10.41981487,166.06,166.05,2.45806237]
[1730487263445,7.40781487,166.06,166.05,2.45806237]
[1730487264544,10.41981487,166.06,166.05,0.37666237]
[1730487264748,7.40781487,166.06,166.04,3.40418187]
[1730487265044,7.40781487,166.05,166.04,3.40418187]
[1730487265528,10.41991487,166.05,166.04,3.40418187]
[1730487266138,7.40781487,166.09,166.04,3.40418187]
[1730487266443,7.40781487,166.09,166.04,10.81199674]
[1730487266839,7.40781487,166.09,166.05,3.0121]
[1730487267042,7.40781487,166.07,166.04,3.40418187]
[1730487267241,7.40781487,166.08,166.04,3.40418187]
[1730487268245,7.40781487,166.08,166.04,6.41638187]
[1730487268636,3.0115,166.09,166.04,6.41638187]
[1730487269243,3.4,166.1,166.06,3.0118]
[1730487269441,11.57046102,166.16,166.05,11.57046102]
[1730487269645,4.36904587,166.15,166.05,15.65066102]
[1730487269830,3.0108,166.13,166.08,3.0116]
[1730487271435,11.57046102,166.14,166.06,3.0119]
[1730487271640,11.57046102,166.14,166.05,4.0802]
[1730487272346,3.46,166.15,166.05,15.65066102]
[1730487272939,3.0106,166.14,166.09,3.0112]
[1730487273437,3.0103,166.16,166.11,3.0109]
[1730487273637,6.4703,166.16,166.11,3.0109]
[1730487273934,14.58046102,166.17,166.12,3.0107]
[1730487276448,11.57046102,166.19,166.09,11.57046102]
[1730487276742,15.03046102,166.21,166.11,11.57046102]
[1730487276950,11.57046102,166.24,166.14,11.57046102]
[1730487277137,3.0089,166.23,166.18,3.0096]
[1730487277334,3.46,166.25,166.16,11.57046102]
[1730487277539,0.96925572,166.24,166.2,3.0093]
[1730487277850,64.70739394,166.26,166.16,11.57046102]
[1730487278149,64.70739394,166.26,166.21,3.0091]
[1730487278150,67.71579394,166.26,166.21,3.0091]
[1730487278348,64.70739394,166.26,166.21,3.0091]
[1730487278548,64.70739394,166.26,166.16,11.57046102]
[1730487278951,64.70739394,166.26,166.14,11.57046102]
[1730487279138,11.57046102,166.24,166.13,3.46]
[1730487279342,3.0094,166.21,166.16,3.01]
[1730487279537,3.0094,166.21,166.13,3.46]
[1730487279950,3.0094,166.21,166.17,3.0098]
[1730487282960,3.0094,166.21,166.15,11.57046102]
[1730487283150,3.0094,166.21,166.18,3.0097]
[1730487283853,11.57046102,166.24,166.15,11.57046102]
[1730487284055,3.0088,166.24,166.17,11.57046102]
[1730487284253,3.0088,166.24,166.18,2.7037]
[1730487284763,15.03046102,166.28,166.19,11.57046102]
[1730487284949,0.96979059,166.27,166.19,11.57046102]
[1730487285156,15.03046102,166.28,166.19,12.86836102]
[1730487285654,3.0085,166.26,166.19,12.86836102]
[1730487286053,15.03046102,166.28,166.19,12.86836102]
[1730487287554,3.0084,166.26,166.23,3.0089]
[1730487295857,15.03046102,166.28,166.19,11.57046102]
[1730487296163,3.0086,166.25,166.22,3.0089]
[1730487296561,10.40853012,166.25,166.22,3.0089]
[1730487297964,10.40833012,166.26,166.21,7.39993012]
[1730487298166,10.40833012,166.26,166.23,3.0089]
[1730487298559,7.39993012,166.26,166.23,3.0089]
[1730487299766,3.0083,166.26,166.23,3.0089]
[1730487300265,3.0089,166.23,166.2,3.0093]
[1730487301050,7.39993012,166.23,166.17,7.39993012]
[1730487301360,7.39993012,166.18,166.11,7.39993012]
[1730487301561,7.39993012,166.16,166.1,9.96883012]
[1730487301757,3.0105,166.15,166.12,3.0108]
[1730487302350,10.41013012,166.16,166.13,3.0107]
[1730487302555,7.39993012,166.16,166.11,7.39993012]
[1730487302752,11.57497672,166.18,166.1,2.5689]
[1730487302957,3.0104,166.15,166.12,3.0108]
[1730487303163,11.57497672,166.16,166.05,1.3768]
[1730487303359,11.57497672,166.14,166.05,4.0033]
[1730487304172,3.0112,166.11,166.07,3.0117]
[1730487304363,14.97497672,166.14,166.05,2.6601]
[1730487304872,3.0116,166.09,166.05,3.012]
[1730487305167,11.57497672,166.11,166.04,3.40418187]
[1730487305560,11.57497672,166.11,166.04,6.41638187]
[1730487306367,3.0114,166.09,166.04,3.40418187]
[1730487306567,3.0114,166.09,166.05,3.0121]
[1730487308557,3.0112,166.11,166.08,3.0116]
[1730487308761,14.97497672,166.14,166.08,3.0116]
[1730487309160,3.4,166.13,166.08,3.0116]
[1730487309568,3.011,166.12,166.08,3.0116]
[1730487310066,3.4,166.13,166.09,3.0113]
[1730487310264,14.97497672,166.16,166.06,11.57497672]
[1730487310670,3.0105,166.14,166.09,3.0114]
[1730487310876,3.0105,166.14,166.06,11.57497672]
[1730487311866,3.0105,166.14,166.1,3.0112]
[1730487312365,14.97497672,166.16,166.08,3.0115]
[1730487312366,3.0109,166.12,166.08,3.0115]
[1730487312568,2.5218,166.19,166.07,1.2807]
[1730487312569,61.2748604,166.18,166.07,1.2807]
[1730487312770,14.97497672,166.22,166.13,11.57497672]
[1730487312972,3.4,166.22,166.14,1.2794]
[1730487313471,3.0098,166.19,166.15,3.0102]
[1730487313665,3.4,166.22,166.14,1.2794]
[1730487314068,3.4,166.22,166.15,3.0102]
[1730487315080,3.0094,166.2,166.15,3.0102]
[1730487315581,3.4,166.22,166.15,3.0102]
[1730487315879,3.0096,166.19,166.15,3.0102]
[1730487316071,3.4,166.22,166.17,3.0099]
[1730487316272,11.57497672,166.23,166.17,3.0099]
[1730487316875,3.0094,166.21,166.17,3.0099]
[1730487319784,11.57497672,166.2,166.14,1.2794]
[1730487320588,3.0098,166.18,166.14,4.2897]
[1730487320766,3.0098,166.18,166.14,3.0103]
[1730487321473,3.0101,166.17,166.13,3.0107]
[1730487323273,3.0101,166.17,166.11,3.4]
[1730487323578,3.0101,166.17,166.14,3.0104]
[1730487323981,11.57497672,166.2,166.14,3.0104]
[1730487324179,3.0102,166.16,166.14,3.0104]
[1730487324484,11.57497672,166.2,166.14,3.0104]
[1730487325384,6.33983795,166.24,166.12,3.0108]
[1730487325385,11.57497672,166.18,166.12,3.0108]
[1730487325690,11.57497672,166.18,166.11,3.4]
[1730487325890,3.0103,166.16,166.13,3.0107]
[1730487329474,11.57497672,166.21,166.1,3.4]
[1730487329669,3.01,166.17,166.14,3.0104]
[1730487331481,3.0099,166.18,166.14,3.0105]
[1730487331787,11.57497672,166.21,166.11,11.57497672]
[1730487332092,11.57497672,166.23,166.11,11.57497672]
[1730487332386,11.57497672,166.21,166.1,3.4]
[1730487332574,3.0101,166.17,166.1,3.4]
[1730487333180,11.57497672,166.19,166.1,3.44]
[1730487333783,3.0103,166.16,166.13,3.0106]
[1730487333982,11.57497672,166.17,166.09,4.7766]
[1730487334183,11.57497672,166.17,166.11,3.0109]
[1730487334382,3.0109,166.12,166.08,73.78946512]
[1730487334583,3.0109,166.12,166.08,72.43576512]
[1730487334989,11.57497672,166.1,166.04,0.50418187]
[1730487335591,3.012,166.06,166.04,0.50418187]
[1730487340396,3.44,166.09,166.04,0.50418187]
[1730487340594,3.44,166.11,166.04,0.50418187]
[1730487341499,3.0115,166.09,166.04,3.51638187]
[1730487341796,3.44,166.11,166.04,3.51638187]
[1730487343291,3.0117,166.08,166.04,3.51638187]
[1730487343493,11.57497672,166.14,166.08,3.0116]
[1730487343687,11.57497672,166.16,166.06,11.57497672]
[1730487343995,11.57497672,166.16,166.06,12.94427672]
[1730487344198,11.57497672,166.18,166.06,12.94427672]
[1730487344498,3.0105,166.15,166.06,12.94427672]
[1730487344699,3.0105,166.15,166.1,3.0111]
[1730487346487,11.57497672,166.18,166.1,3.0111]
[1730487346691,3.0105,166.14,166.1,3.0111]
[1730487349300,11.57497672,166.18,166.08,11.57497672]
[1730487349503,3.0104,166.15,166.11,3.0109]